fUST/lending_fUST_20250406
["ID","MTS","AMOUNT","RATE_DAILY","PERIOD"]
[357255616,1743951032987,-546.22,0.00024586,3]
[357255617,1743951032997,-500.0,0.00024595,2]
[357255618,1743951033006,-472.61325115,0.00024595,2]
[357255619,1743951033016,-9323.39227242,0.00024595,3]
[357255620,1743951033026,-29480.97518148,0.00024595,3]
[357255621,1743951033035,-59275.22415389,0.00024596,2]
[357255633,1743951038327,-500.0,0.00024594,2]
[357255634,1743951038343,-500.0,0.00024594,2]
[357255635,1743951038352,-500.0,0.00024594,2]
[357255636,1743951038361,-500.0,0.00024594,2]
[357255637,1743951038371,-440.0812577,0.00024594,2]
[357255638,1743951038380,-500.0,0.00024594,2]
[357255639,1743951038389,-500.0,0.00024594,2]
[357255640,1743951038398,-500.0,0.00024594,2]
[357255641,1743951038408,-500.0,0.00024594,2]
[357255642,1743951038417,-500.0,0.00024594,2]
[357255643,1743951038426,-500.0,0.00024594,2]
[357255644,1743951038446,-500.0,0.00024594,2]
[357255645,1743951038456,-500.0,0.00024594,2]
[357255646,1743951038467,-500.0,0.00024594,2]
[357255647,1743951038477,-500.0,0.00024594,2]
[357255648,1743951038487,-500.0,0.00024594,2]
[357255649,1743951038496,-500.0,0.00024594,2]
[357255650,1743951038506,-500.0,0.00024594,2]
[357255651,1743951038516,-500.0,0.00024594,2]
[357255652,1743951038526,-500.0,0.00024594,2]
[357255653,1743951038536,-500.0,0.00024594,2]
[357255654,1743951038545,-500.0,0.00024594,2]
[357255655,1743951038555,-500.0,0.00024594,2]
[357255656,1743951038565,-500.0,0.00024594,2]
[357255657,1743951038575,-500.0,0.00024594,2]
[357255658,1743951038584,-500.0,0.00024594,2]
[357255659,1743951038597,-310724.77584611,0.00024596,2]
[357255660,1743951038606,-184.08665193,0.00024596,2]
[357255661,1743951038616,-357.0,0.00024696,3]
[357255662,1743951038626,-357.0,0.00024696,3]
[357255663,1743951038636,-357.0,0.00024696,3]
[357255664,1743951038646,-338.37957501,0.00024696,3]
[357255665,1743951038656,-368.81578178,0.00024696,3]
[357255666,1743951038666,-357.0,0.00024696,3]
[357255667,1743951038676,-331.92879127,0.00024696,3]
[357255668,1743951038685,-357.0,0.00024696,3]
[357255669,1743951038695,-357.0,0.00024696,3]
[357255670,1743951038704,-500.0,0.00024773,2]
[357255671,1743951038716,-500.0,0.00024773,2]
[357255672,1743951038729,-500.0,0.00024829,2]
[357255673,1743951038739,-596.78846293,0.00024873,2]
[357255674,1743951038749,-500.0,0.00024873,2]
[357255675,1743951038759,-500.0,0.00024873,2]
[357255676,1743951038771,-500.0,0.00024873,2]
[357255677,1743951038780,-593.25609867,0.00024873,2]
[357255678,1743951038790,-500.0,0.00024873,2]
[357255679,1743951038801,-500.0,0.00024873,2]
[357255680,1743951038811,-500.0,0.00024873,2]
[357255681,1743951038821,-500.0,0.00024873,2]
[357255682,1743951038831,-154914.695881,0.000249,2]
[357255683,1743951038842,-5606.9599514,0.000249,5]
[357255684,1743951038852,-2017.97985391,0.00024919,2]
[357255685,1743951038862,-2123.599999,0.00025,2]
[357255686,1743951038872,-5606.95995132,0.00025934,6]
[357255687,1743951038900,-207.4,0.0002595,2]
[357255688,1743951038921,-728.24,0.00025956,3]
[357255689,1743951038942,-364.12,0.00025956,3]
[357255690,1743951038963,-420.0,0.00026631,2]
[357255691,1743951038986,-1249.499999,0.00026898,2]
[357255692,1743951039004,-542.0,0.00026969,2]
[357255693,1743951039026,-1478.0,0.00026969,2]
[357255694,1743951039041,-2254.0,0.00026969,2]
[357255695,1743951039057,-401.0,0.00026969,2]
[357255696,1743951039077,-5606.95995132,0.00026969,7]
[357255697,1743951039095,-215.0738,0.00027319,2]
[357255698,1743951039114,-500.0,0.00027397,5]
[357255699,1743951039128,-17212.7439868,0.00027548,2]
[357255700,1743951039148,-529.98387815,0.00027797,2]
[357255701,1743951039161,-5606.95995132,0.00028003,7]
[357255702,1743951039179,-223.0315306,0.00028688,2]
[357255703,1743951039192,-587.0,0.00028863,2]
[357255704,1743951039209,-856.73082672,0.00028977,2]
[357255705,1743951039226,-5606.95995132,0.00029038,8]
[357255706,1743951039243,-305.1375601,0.000291,4]
[357255707,1743951039259,-153.24147409,0.000299,2]
[357255708,1743951039273,-219.0,0.00029969,2]
[357255709,1743951039288,-401.0,0.00029969,2]
[357255710,1743951039304,-51638.2319604,0.0002999,2]
[357255711,1743951039318,-149550.94616714,0.0003,2]
[357255712,1743951039333,-1387.48,0.0003,2]
[357255713,1743951039348,-7167.0,0.0003,2]
[357255714,1743951039362,-5000.0,0.0003,7]
[357255715,1743951039378,-151.0,0.0003,7]
[357255716,1743951039392,-153.618908,0.0003,7]
[357255717,1743951039408,-151.0,0.0003,7]
[357255718,1743951039422,-202.619455,0.0003,7]
[357255719,1743951039437,-202.619455,0.0003,7]
[357255720,1743951039452,-166.98289183,0.0003,2]
[357255721,1743951039466,-267.0,0.0003,2]
[357255722,1743951039481,-2000.0,0.0003,4]
[357255723,1743951039497,-1000.0,0.00030052,2]
[357255724,1743951039511,-1000.0,0.00030052,5]
[357255725,1743951039526,-500.0,0.00030052,5]
[357255726,1743951039539,-1000.0,0.00030052,5]
[357255727,1743951039553,-1000.0,0.00030052,5]
[357255728,1743951039568,-1000.0,0.00030052,5]
[357255729,1743951039582,-231.28369723,0.00030057,2]
[357255730,1743951039597,-5606.95995132,0.00030072,9]
[357255731,1743951039610,-500.0,0.00030252,5]
[357255732,1743951039626,-500.0,0.00030252,5]
[357255733,1743951039640,-1000.0,0.00030352,5]
[357255734,1743951039654,-500.0,0.00030352,5]
[357255735,1743951039668,-500.0,0.00030352,5]
[357255736,1743951039684,-1000.0,0.00030352,5]
[357255737,1743951039697,-500.0,0.00030352,5]
[357255738,1743951039831,-500.0,0.00030352,5]
[357255739,1743951039857,-500.0,0.00030352,5]
[357255740,1743951039867,-374.29984,0.000309,120]
[357255741,1743951039878,-1472.58852192,0.00030936,2]
[357255742,1743951039887,-300.72095459,0.0003099,2]
[357255743,1743951039897,-5606.95995132,0.00031107,9]
[357255744,1743951039907,-823.0,0.00031282,2]
[357255745,1743951039917,-239.84119403,0.00031426,2]
[357255746,1743951039927,-150.29,0.00031752,5]
[357255747,1743951039937,-150.58556691,0.00031752,5]
[357255748,1743951039946,-201.3589579,0.00031752,5]
[357255749,1743951039956,-200.2,0.00031752,5]
[357255750,1743951039965,-200.23,0.00031752,5]
[357255751,1743951039975,-153.26030556,0.00031752,5]
[357255752,1743951039985,-200.2,0.00031752,5]
[357255753,1743951039994,-631.0,0.00031752,2]
[357255754,1743951040004,-151.6735817,0.00031752,5]
[357255755,1743951040014,-200.87342718,0.00031752,5]
[357255756,1743951040023,-631.0,0.00031889,2]
[357255757,1743951040033,-2000.0,0.00032,2]
[357255758,1743951040043,-200.0,0.00032026,5]
[357255759,1743951040054,-201.51202968,0.00032026,5]
[357255760,1743951040063,-631.0,0.00032026,2]
[357255761,1743951040072,-5606.95995132,0.00032141,10]
[357255762,1743951040082,-631.0,0.00032163,2]
[357255763,1743951040092,-631.0,0.000323,2]
[357255764,1743951040102,-200.0,0.00032437,5]
[357255765,1743951040111,-631.0,0.00032437,2]
[357255766,1743951040121,-2000.0,0.000325,15]
[357255767,1743951040130,-631.0,0.00032574,2]
[357255768,1743951040140,-167431.0,0.000326,2]
[357255769,1743951040150,-151.0,0.000326,7]
[357255770,1743951040160,-151.0,0.000326,7]
[357255771,1743951040169,-202.619455,0.000326,7]
[357255772,1743951040178,-202.619455,0.000326,7]
[357255773,1743951040188,-152.760974,0.000326,7]
[357255774,1743951040197,-151.0,0.000326,7]
[357255775,1743951040207,-215.982859,0.000326,7]
[357255776,1743951040216,-151.0,0.000326,7]
[357255777,1743951040226,-431.438634,0.000326,7]
[357255778,1743951040240,-431.438634,0.000326,7]
[357255779,1743951040249,-151.0,0.000326,7]
[357255780,1743951040259,-216.362036,0.000326,7]
[357255781,1743951040269,-216.362036,0.000326,7]
[357255782,1743951040279,-151.0,0.000326,7]
[357255783,1743951040289,-151.0,0.000326,7]
[357255784,1743951040300,-151.0,0.000326,7]
[357255785,1743951040310,-151.0,0.000326,7]
[357255786,1743951040321,-151.0,0.000326,7]
[357255787,1743951040331,-1128.834176,0.000326,7]
[357255788,1743951040341,-1128.834176,0.000326,7]
[357255789,1743951040352,-151.0,0.000326,7]
[357255790,1743951040362,-151.0,0.000326,7]
[357255791,1743951040373,-151.0,0.000326,7]
[357255792,1743951040383,-151.0,0.000326,7]
[357255793,1743951040394,-151.0,0.000326,7]
[357255794,1743951040404,-962.314373,0.000326,2]
[357255795,1743951040415,-962.314373,0.000326,2]
[357255796,1743951040425,-151.0,0.000326,7]
[357255798,1743951040435,-220.015209,0.000326,7]
[357255800,1743951040446,-151.0,0.000326,7]
[357255802,1743951040456,-220.015209,0.000326,7]
[357255804,1743951040466,-224.906835,0.000326,7]
[357255806,1743951040476,-224.906835,0.000326,7]
[357255808,1743951040486,-631.0,0.00032711,2]
[357255810,1743951040496,-248.71531821,0.00032795,2]
[357255811,1743951040507,-631.0,0.00032848,2]
[357255812,1743951040517,-246.0305955,0.00032877,120]
[357255813,1743951040527,-151.0,0.00032877,14]
[357255814,1743951040537,-1000.0,0.00032877,5]
[357255815,1743951040547,-401.0,0.00032969,2]
[357255816,1743951040558,-631.0,0.00032985,2]
[357255817,1743951040568,-10000.0,0.00033,2]
[357255818,1743951040578,-267.0,0.00033,2]
[357255819,1743951040589,-267.0,0.00033,2]
[357255820,1743951040601,-631.0,0.00033122,2]
[357255821,1743951040613,-5606.95995132,0.00033176,11]
[357255822,1743951040623,-631.0,0.00033259,2]
[357255823,1743951040634,-631.0,0.00033396,2]
[357255824,1743951040644,-500.0,0.00033493,2]
[357255825,1743951040655,-631.0,0.00033533,2]
[357255826,1743951040666,-631.0,0.0003367,2]
[357255827,1743951040676,-631.0,0.00033807,2]
[357255828,1743951040687,-1152.0,0.00033904,2]
[357255829,1743951040697,-631.0,0.00033944,2]
[357255830,1743951040707,-1000.0,0.00034,2]
[357255831,1743951040718,-5000.0,0.00034,2]
[357255832,1743951040731,-847.85940809,0.00034,4]
[357255833,1743951040742,-631.0,0.00034081,2]
[357255834,1743951040752,-257.91778498,0.00034164,2]
[357255835,1743951040763,-5606.95995132,0.0003421,11]
[357255836,1743951040773,-631.0,0.00034218,2]
[357255837,1743951040783,-534.15883245,0.00034281,2]
[357255838,1743951040793,-151.0,0.00034339,14]
[357255839,1743951040803,-151.0,0.00034339,14]
[357255840,1743951040814,-202.619455,0.00034339,14]
[357255841,1743951040824,-202.619455,0.00034339,14]
[357255842,1743951040834,-151.0,0.00034339,14]
[357255843,1743951040844,-151.0,0.00034339,14]
[357255844,1743951040854,-431.438634,0.00034339,14]
[357255845,1743951040865,-431.438634,0.00034339,14]
[357255846,1743951040874,-151.0,0.00034339,14]
[357255847,1743951040885,-216.362036,0.00034339,14]
[357255848,1743951040896,-216.362036,0.00034339,14]
[357255849,1743951040906,-151.0,0.00034339,14]
[357255850,1743951040916,-151.0,0.00034339,14]
[357255851,1743951040926,-151.0,0.00034339,14]
[357255852,1743951040936,-151.0,0.00034339,14]
[357255853,1743951040946,-151.0,0.00034339,14]
[357255854,1743951040955,-151.0,0.00034339,14]
[357255855,1743951040965,-1128.834176,0.00034339,14]
[357255856,1743951040974,-1128.834176,0.00034339,14]
[357255857,1743951040984,-151.0,0.00034339,14]
[357255858,1743951040994,-151.0,0.00034339,14]
[357255859,1743951041004,-151.0,0.00034339,14]
[357255860,1743951041014,-151.0,0.00034339,14]
[357255861,1743951041024,-151.0,0.00034339,14]
[357255862,1743951041034,-962.314373,0.00034339,2]
[357255863,1743951041044,-962.314373,0.00034339,2]
[357255864,1743951041054,-151.0,0.00034339,14]
[357255865,1743951041064,-220.015209,0.00034339,14]
[357255866,1743951041075,-151.0,0.00034339,14]
[357255867,1743951041085,-220.015209,0.00034339,14]
[357255868,1743951041095,-224.906835,0.00034339,14]
[357255869,1743951041105,-224.906835,0.00034339,14]
[357255870,1743951041115,-94422.90895253,0.00034339,5]
[357255905,1743951043670,-7500.99435976,0.00034339,5]
[357255942,1743951046667,-7876.8686002,0.00034339,5]
[357255943,1743951246551,283.2550852,0.00025,120]
[357255944,1743951270115,175.677044,0.00013699,2]
[357255945,1743951536087,2123.6,0.00023,10]
[357255956,1743952040424,219.524935,0.00023607,120]
[357256001,1743952232657,-255.90531252,0.00023131,2]
[357256002,1743952232805,-2193.66300948,0.00023131,2]
[357256003,1743952232821,-300.0,0.00023285,2]
[357256004,1743952232837,-5952.70355539,0.00023286,2]
[357256034,1743952238422,-293.33861973,0.00023286,2]
[357256037,1743952238473,-886.97180754,0.00023286,2]
[357256038,1743952238485,-1150.60243313,0.00023286,2]
[357256039,1743952238498,-1599.13135451,0.00023286,2]
[357256040,1743952238509,-3579.72747579,0.00023286,2]
[357256041,1743952238521,-760.67365689,0.00023286,2]
[357256042,1743952238533,-2652.46156252,0.00023286,2]
[357256043,1743952238545,-2182.42247119,0.00023286,2]
[357256044,1743952238557,-5841.96706331,0.00023286,2]
[357256045,1743952238568,-219.76367,0.00023484,2]
[357256046,1743952238577,-219.76367,0.00023601,2]
[357256047,1743952238586,-219.524935,0.00023607,2]
[357256048,1743952238596,-500.0,0.00023667,2]
[357256049,1743952238606,-357.0,0.00023895,3]
[357256050,1743952238616,-357.0,0.00023895,3]
[357256051,1743952238625,-7167.0,0.00024,2]
[357256052,1743952238635,-1869.48418883,0.00024009,2]
[357256053,1743952238644,-500.0,0.00024473,2]
[357256054,1743952238653,-500.0,0.00024473,2]
[357256055,1743952238663,-500.0,0.00024473,2]
[357256056,1743952238672,-500.0,0.00024473,2]
[357256057,1743952238682,-500.0,0.00024473,2]
[357256058,1743952238691,-500.0,0.00024473,2]
[357256059,1743952238701,-500.0,0.00024473,2]
[357256060,1743952238710,-500.0,0.00024473,2]
[357256061,1743952238720,-500.0,0.00024473,2]
[357256062,1743952238730,-200.0,0.00024481,2]
[357256063,1743952238739,-182.06,0.00024486,3]
[357256064,1743952238749,-546.18,0.00024486,3]
[357256065,1743952238758,-500.0,0.00024494,2]
[357256066,1743952238768,-369.2894566,0.00024494,2]
[357256067,1743952238778,-500.0,0.00024494,2]
[357256068,1743952238789,-500.0,0.00024494,2]
[357256069,1743952238799,-463.22229381,0.00024494,2]
[357256070,1743952238808,-500.0,0.00024494,2]
[357256071,1743952238818,-500.0,0.00024494,2]
[357256072,1743952238828,-500.0,0.00024494,2]
[357256073,1743952238838,-500.0,0.00024494,2]
[357256074,1743952238847,-500.0,0.00024494,2]
[357256075,1743952238857,-500.0,0.00024494,2]
[357256076,1743952238867,-500.0,0.00024494,2]
[357256077,1743952238876,-500.0,0.00024494,2]
[357256078,1743952238886,-500.0,0.00024494,2]
[357256079,1743952238895,-500.0,0.00024494,2]
[357256080,1743952238904,-500.0,0.00024494,2]
[357256081,1743952238913,-500.0,0.00024494,2]
[357256082,1743952238923,-500.0,0.00024494,2]
[357256083,1743952238932,-500.0,0.00024494,2]
[357256084,1743952238942,-500.0,0.00024494,2]
[357256085,1743952238951,-500.0,0.00024494,2]
[357256086,1743952238960,-500.0,0.00024494,2]
[357256087,1743952238970,-500.0,0.00024494,2]
[357256088,1743952238979,-500.0,0.00024494,2]
[357256089,1743952238988,-500.0,0.00024494,2]
[357256090,1743952238998,-500.0,0.00024494,2]
[357256091,1743952239010,-500.0,0.00024494,2]
[357256092,1743952239019,-500.0,0.00024494,2]
[357256093,1743952239030,-500.0,0.00024494,2]
[357256094,1743952239039,-500.0,0.00024494,2]
[357256095,1743952239049,-500.0,0.00024494,2]
[357256096,1743952239058,-500.0,0.00024494,2]
[357256097,1743952239067,-500.0,0.00024494,2]
[357256098,1743952239077,-500.0,0.00024494,2]
[357256099,1743952239087,-500.0,0.00024494,2]
[357256100,1743952239100,-500.0,0.00024494,2]
[357256101,1743952239109,-500.0,0.00024494,2]
[357256102,1743952239119,-500.0,0.00024494,2]
[357256103,1743952239129,-500.0,0.00024494,2]
[357256104,1743952239139,-500.0,0.00024494,2]
[357256105,1743952239148,-500.0,0.00024494,2]
[357256106,1743952239158,-500.0,0.00024494,2]
[357256107,1743952239168,-500.0,0.00024494,2]
[357256108,1743952239178,-500.0,0.00024494,2]
[357256109,1743952239188,-500.0,0.00024494,2]
[357256110,1743952239198,-501.07313193,0.00024494,2]
[357256111,1743952239208,-500.0,0.00024494,2]
[357256112,1743952239218,-500.0,0.00024494,2]
[357256113,1743952239227,-500.0,0.00024494,2]
[357256114,1743952239237,-500.0,0.00024495,2]
[357256115,1743952239246,-441.9099429,0.00024495,2]
[357256116,1743952239256,-370000.0,0.00024496,2]
[357256117,1743952239266,-184.08665193,0.00024524,2]
[357256118,1743952239275,-2024.23469192,0.00024625,2]
[357256119,1743952239286,-500.0,0.00024773,2]
[357256120,1743952239295,-593.25609867,0.00024773,2]
[357256121,1743952239305,-596.78846293,0.00024773,2]
[357256122,1743952239314,-500.0,0.00024773,2]
[357256123,1743952239324,-500.0,0.00024873,2]
[357256124,1743952239334,-500.0,0.00024873,2]
[357256125,1743952239345,-500.0,0.00024873,2]
[357256126,1743952239355,-500.0,0.00024873,2]
[357256127,1743952239364,-500.0,0.00024873,2]
[357256128,1743952239373,-500.0,0.00024873,2]
[357256129,1743952239383,-154914.695881,0.000249,2]
[357256130,1743952239393,-6402.69780843,0.000249,5]
[357256131,1743952239403,-420.0,0.0002527,2]
[357256132,1743952239412,-207.4,0.0002585,2]
[357256133,1743952239422,-364.12,0.00025856,3]
[357256134,1743952239432,-6402.69780822,0.00025934,6]
[357256135,1743952239442,-6402.69780822,0.00026969,7]
[357256136,1743952239451,-374.29984,0.00027,120]
[357256137,1743952239461,-215.0738,0.00027219,2]
[357256138,1743952239471,-500.0,0.00027397,5]
[357256139,1743952239481,-587.0,0.00027424,2]
[357256140,1743952239490,-17212.7439868,0.00027464,2]
[357256141,1743952239500,-542.0,0.00027933,2]
[357256142,1743952239510,-1478.0,0.00027933,2]
[357256143,1743952239521,-2254.0,0.00027933,2]
[357256144,1743952239531,-401.0,0.00027933,2]
[357256145,1743952239540,-6402.69780822,0.00028003,7]
[357256146,1743952239550,-223.0315306,0.00028588,2]
[357256147,1743952239559,-856.73082672,0.00028779,2]
[357256148,1743952239569,-6402.69780822,0.00029038,8]
[357256149,1743952239579,-250.0,0.00029215,5]
[357256150,1743952239592,-823.0,0.00029762,2]
[357256151,1743952239601,-350.0,0.00029763,5]
[357256152,1743952239610,-1000.0,0.00029952,2]
[357256153,1743952239620,-1000.0,0.00029952,5]
[357256154,1743952239630,-1000.0,0.00029952,5]
[357256155,1743952239639,-1000.0,0.00029952,5]
[357256156,1743952239650,-1000.0,0.00029952,5]
[357256157,1743952239661,-1000.0,0.00029952,5]
[357256158,1743952239671,-231.28369723,0.00029957,2]
[357256159,1743952239681,-17212.7439868,0.0002998,2]
[357256160,1743952239691,-34425.4879736,0.0002999,2]
[357256161,1743952239701,-1387.48,0.0003,2]
[357256162,1743952239710,-166.98289183,0.0003,2]
[357256163,1743952239720,-5000.0,0.0003,7]
[357256164,1743952239730,-149550.94616714,0.0003,2]
[357256165,1743952239739,-151.0,0.0003,7]
[357256166,1743952239749,-151.0,0.0003,7]
[357256167,1743952239758,-151.0,0.0003,7]
[357256168,1743952239768,-151.0,0.0003,7]
[357256169,1743952239778,-224.906835,0.0003,7]
[357256170,1743952239787,-224.906835,0.0003,7]
[357256171,1743952239797,-151.0,0.0003,7]
[357256172,1743952239807,-151.0,0.0003,7]
[357256173,1743952239818,-1128.834176,0.0003,7]
[357256174,1743952239828,-1128.834176,0.0003,7]
[357256175,1743952239838,-153.618908,0.0003,7]
[357256176,1743952239849,-151.0,0.0003,7]
[357256177,1743952239858,-267.0,0.0003,2]
[357256178,1743952239870,-151.0,0.0003,7]
[357256179,1743952239879,-151.0,0.0003,7]
[357256180,1743952239889,-962.314373,0.0003,2]
[357256181,1743952239899,-962.314373,0.0003,2]
[357256182,1743952239908,-1514.61078979,0.0003,30]
[357256183,1743952239917,-6402.69780822,0.00030072,9]
[357256184,1743952239927,-1000.0,0.00030252,5]
[357256186,1743952240021,-500.0,0.00030252,5]
[357256187,1743952240032,-450.0,0.00030311,5]
[357256188,1743952240042,-500.0,0.00030352,5]
[357256189,1743952240052,-500.0,0.00030352,5]
[357256190,1743952240062,-500.0,0.00030352,5]
[357256191,1743952240072,-500.0,0.00030352,5]
[357256192,1743952240082,-500.0,0.00030352,5]
[357256193,1743952240094,-500.0,0.00030352,5]
[357256194,1743952240106,-2000.0,0.0003078,4]
[357256195,1743952240115,-202.91282662,0.00030858,5]
[357256196,1743952240125,-219.0,0.00030933,2]
[357256197,1743952240135,-401.0,0.00030933,2]
[357256198,1743952240144,-6402.69780822,0.00031107,9]
[357256199,1743952240154,-239.84119403,0.00031326,2]
[357256200,1743952240164,-6402.69780822,0.00032141,10]
[357256201,1743952240174,-1152.0,0.00032299,2]
[357256202,1743952240184,-248.71531821,0.00032695,2]
[357256203,1743952240194,-246.0305955,0.00032877,120]
[357256204,1743952240204,-151.0,0.00032877,14]
[357256205,1743952240213,-1000.0,0.00032877,5]
[357256206,1743952240223,-267.0,0.00033,2]
[357256207,1743952240233,-267.0,0.00033,2]
[357256208,1743952240243,-6402.69780822,0.00033176,11]
[357256209,1743952240252,-305.1375601,0.00033308,4]
[357256210,1743952240263,-401.0,0.00033933,2]
[357256211,1743952240272,-199.57,0.00034,7]
[357256212,1743952240282,-257.91778498,0.00034064,2]
[357256213,1743952240292,-6402.69780822,0.0003421,11]
[357256214,1743952240302,-318.0,0.00034339,7]
[357256215,1743952240313,-382.74457305,0.00034339,7]
[357256216,1743952240323,-357.0,0.00034339,7]
[357256217,1743952240332,-357.0,0.00034339,7]
[357256218,1743952240342,-357.0,0.00034339,7]
[357256219,1743952240352,-357.0,0.00034339,7]
[357256220,1743952240362,-357.0,0.00034339,7]
[357256221,1743952240371,-357.0,0.00034339,7]
[357256222,1743952240382,-338.37957501,0.00034339,7]
[357256223,1743952240392,-318.0,0.00034339,7]
[357256224,1743952240401,-318.0,0.00034339,7]
[357256225,1743952240411,-318.0,0.00034339,7]
[357256226,1743952240422,-318.0,0.00034339,7]
[357256227,1743952240432,-318.0,0.00034339,7]
[357256228,1743952240441,-357.0,0.00034339,7]
[357256229,1743952240451,-357.0,0.00034339,7]
[357256230,1743952240460,-318.0,0.00034339,7]
[357256231,1743952240470,-357.0,0.00034339,7]
[357256232,1743952240479,-318.0,0.00034339,7]
[357256233,1743952240489,-357.0,0.00034339,7]
[357256234,1743952240498,-318.0,0.00034339,7]
[357256235,1743952240507,-357.0,0.00034339,7]
[357256236,1743952240516,-318.0,0.00034339,7]
[357256237,1743952240539,-318.0,0.00034339,7]
[357256238,1743952240550,-318.0,0.00034339,7]
[357256239,1743952240560,-318.0,0.00034339,7]
[357256240,1743952240570,-439.42044866,0.00034339,7]
[357256241,1743952240580,-215814.29201497,0.0003438,5]
[357256242,1743952240829,-21685.66976472,0.0003438,5]
[357256243,1743952240841,-15638.83289938,0.0003438,5]
[357256244,1743952240857,-19904.39752745,0.0003438,5]
[357256245,1743952240868,-11028.25781766,0.0003438,5]
[357256246,1743952240879,-549.68701586,0.0003438,5]
[357256247,1743952240889,-202.619455,0.0003438,14]
[357256248,1743952240899,-202.619455,0.0003438,14]
[357256249,1743952240909,-152.760974,0.0003438,14]
[357256250,1743952240918,-151.0,0.0003438,14]
[357256251,1743952240928,-151.0,0.0003438,14]
[357256252,1743952240938,-151.0,0.0003438,14]
[357256253,1743952240949,-220.015209,0.0003438,14]
[357256254,1743952240960,-151.0,0.0003438,14]
[357256255,1743952240971,-215.982859,0.0003438,14]
[357256256,1743952240981,-431.438634,0.0003438,14]
[357256257,1743952240991,-431.438634,0.0003438,14]
[357256258,1743952241000,-151.0,0.0003438,14]
[357256259,1743952241009,-216.362036,0.0003438,14]
[357256260,1743952241019,-216.362036,0.0003438,14]
[357256261,1743952241028,-151.0,0.0003438,14]
[357256262,1743952241037,-151.0,0.0003438,14]
[357256263,1743952241046,-151.0,0.0003438,14]
[357256264,1743952241056,-151.0,0.0003438,14]
[357256265,1743952241065,-224.906835,0.0003438,14]
[357256266,1743952241075,-224.906835,0.0003438,14]
[357256267,1743952241084,-151.0,0.0003438,14]
[357256268,1743952241097,-151.0,0.0003438,14]
[357256269,1743952241106,-151.0,0.0003438,14]
[357256270,1743952241115,-1128.834176,0.0003438,14]
[357256271,1743952241125,-1128.834176,0.0003438,14]
[357256272,1743952241135,-151.0,0.0003438,14]
[357256273,1743952241144,-151.0,0.0003438,14]
[357256274,1743952241154,-151.0,0.0003438,14]
[357256275,1743952241163,-460.73167014,0.0003438,2]
[357256276,1743952241175,-501.58270286,0.0003438,2]
[357256277,1743952241186,-962.314373,0.0003438,2]
[357256278,1743952241195,-151.0,0.0003438,14]
[357256279,1743952241204,-4624.9999995,0.00034411,15]
[357256280,1743952241214,-222.0,0.00034539,2]
[357256281,1743952241324,-222.0,0.00034539,2]
[357256282,1743952241334,-222.0,0.00034539,2]
[357256283,1743952241344,-222.0,0.00034539,2]
[357256284,1743952241354,-222.0,0.00034539,2]
[357256285,1743952241363,-222.0,0.00034539,2]
[357256286,1743952241372,-222.0,0.00034539,2]
[357256287,1743952241382,-222.0,0.00034539,2]
[357256288,1743952241391,-222.0,0.00034539,2]
[357256289,1743952241401,-222.0,0.00034539,2]